Workbook

Sheet Paramètres campagne
A1: PARAMETRES DES CAMPAGNES INTEMPERIES
A3: Campagne en cours | B3: N° de campagne | C3: Date de début de campagne | D3: Date de fin de campagne | E3: Abattement annuel | F3: Taux de cotisation GO | G3: Taux de cotisation SO
B4: 64 | C4: 2009-04-01 | D4: 2010-03-31 | E4: 69684 | F4: 0.0062 | G4: 0.0018
B5: 65 | C5: 2010-04-01 | D5: 2011-03-31 | E5: 70560 | F5: 0.0062 | G5: 0.0018
B6: 66 | C6: 2011-04-01 | D6: 2012-03-31 | E6: 70884 | F6: 0.0076 | G6: 0.0018
B7: 67 | C7: 2012-04-01 | D7: 2013-03-31 | E7: 73524 | F7: 0.0084 | G7: 0.0019
B8: 68 | C8: 2013-04-01 | D8: 2013-09-30 | E8: 75204 | F8: 0.0114 | G8: 0.0026
A9: =IF(A8="X","X2","") ->  | B9: 68 | C9: 2013-10-01 | D9: 2014-03-31 | E9: 75204 | F9: 0.0137 | G9: 0.0031
B10: 69 | C10: 2014-04-01 | D10: 2015-03-31 | E10: 75444 | F10: 0.0137 | G10: 0.0031
B11: 70 | C11: 2015-04-01 | D11: 2016-03-31 | E11: 76248 | F11: 0.0137 | G11: 0.0031
B12: 71 | C12: 2016-04-01 | D12: 2017-03-31 | E12: 76884 | F12: 0.0098 | G12: 0.0021
B13: 72 | C13: 2017-04-01 | D13: 2018-03-31 | E13: 78084 | F13: 0.0098 | G13: 0.0021
B14: 73 | C14: 2018-04-01 | D14: 2018-09-30 | E14: 79044 | F14: 0.0084 | G14: 0.0017
A15: =IF(A14="X","X2","") ->  | B15: 73 | C15: 2018-10-01 | D15: 2019-03-31 | E15: 79044 | F15: 0.0034 | G15: 0.0007
B16: 74 | C16: 2019-04-01 | D16: 2020-03-31 | E16: 80244 | F16: 0.0074 | G16: 0.0015
B17: 75 | C17: 2020-04-01 | D17: 2021-03-31 | E17: 81204 | F17: 0.0074 | G17: 0.0015
B18: 76 | C18: 2021-04-01 | D18: 2022-03-31 | E18: 82008 | F18: 0.0068 | G18: 0.0013
A19: X | B19: 77 | C19: 2022-04-01 | D19: 2023-03-31 | E19: 84564 | F19: 0.0068 | G19: 0.0013
G35: S00056-10

Sheet Méthode de calcul & exemple
A1: METHODE ET EXEMPLE DE CALCUL DE L'ABATTEMENT INTEMPERIES
I2: S00056-10
A3: Rôle de l'abattement intempéries :
A4: L'abattement intempéries sert à vérifier que l'adhérent atteint sur une campagne annuelle (du 1er avril au 31 mars de chaque année) un montant minimum de salaires à déclarer pour :
A5: - verser une cotisation intempéries ;
A6: - et par conséquent bénéficier de remboursements en cas d'arrêt de travail des salariés pour cause d'intempéries.
A7: Ainsi, si l'abattement, pour les 12 mois de la campagne, vaut 50 000 €, un adhérent qui déclare 40 000 € de cotisations intempéries en 12 mois déduira au total 40 000 € d'abattement intempéries et ne versera donc rien au régime intempéries. Par conséquent, en cas de déclaration d'arrêt pour cause d'intempéries, il ne recevra aucun remboursement.
A8: Un adhérent qui commence à cotiser en cours d'année se verra attribuer un douzième d'abattement par mois de cotisation commencé.
A10: Comment déduire l'abattement intempéries ?
A11: La déduction de l'abattement intempéries est automatique pour les adhérents qui utilisent la TDP ou la DSN pour déclarer leurs cotisations mensuelles. Sur le site cnetp.fr son montant apparaît, soit au niveau de la déclaration de salaires (TDP), soit de l'appel de cotisations (DSN).
A12: La déduction s'opère chaque mois d'une campagne sous le "total des cotisations". Le montant de l'abattement déduit ne dépasse jamais celui de la cotisation intempéries indiqué sur la déclaration.
A13: Pour les adhérents qui n’utilisent pas la DSN, il est donc indispensable de renseigner systématiquement le montant de l’assiette plafonnée sur chacune de leurs déclarations de salaires.
A14: ="La déduction s'arrête lorsque le cumul des assiettes de cotisations intempéries déclaré depuis la déclaration du mois d'avril de la campagne en cours, atteint le montant annuel de l'abattement, soit "&TEXT($B$26,"# ### €")&" pour la "&$F$18&"." -> La déduction s'arrête lorsque le cumul des assiettes de cotisations intempéries déclaré depuis la déclaration du mois d'avril de la campagne en cours, atteint le montant annuel de l'abattement, soit 84 564 € pour la 77ème campagne.
A18: Campagne du : | B18: =VLOOKUP("X",'Paramètres campagne'!$A$3:$G$19,3,FALSE) -> 2022-04-01 | C18: au | D18: =IF(OR(VLOOKUP("X",'Paramètres campagne'!$A$3:$G$19,2,FALSE)=68,VLOOKUP("X",'Paramètres campagne'!$A$3:$G$19,2,FALSE)=73),VLOOKUP("X2",'Paramètres campagne'!$A$3:$G$19,4,FALSE),VLOOKUP("X",'Paramètres campagne'!$A$3:$G$19,4,FALSE)) -> 2023-03-31 | F18: =VLOOKUP("X",'Paramètres campagne'!$A$3:$G$19,2)&"ème campagne" -> 77ème campagne
A20: Taux d'appel de la cotisation intempéries: | D20: Gros œuvre | E20: =VLOOKUP("X",'Paramètres campagne'!$A$3:$G$19,6,FALSE) -> 0.0068 | F20: =IF(ISERROR(VLOOKUP("X2",'Paramètres campagne'!$A$3:$G$19,6,FALSE)),"",VLOOKUP("X2",'Paramètres campagne'!$A$3:$G$19,6,FALSE)) -> 
D21: Second œuvre | E21: =VLOOKUP("X",'Paramètres campagne'!$A$3:$G$19,7,FALSE) -> 0.0013 | F21: =IF(ISERROR(VLOOKUP("X2",'Paramètres campagne'!$A$3:$G$19,7,FALSE)),"",VLOOKUP("X2",'Paramètres campagne'!$A$3:$G$19,7,FALSE)) -> 
A23: Montant de l'abattement intempéries annuel :
B25: Base annuelle maximale à déduire | C25: Taux de cotisation | D25: Montant annuel maximal à déduire (sauf écarts d'arrondis)
A26: Gros œuvre | B26: =VLOOKUP("X",'Paramètres campagne'!$A$3:$G$19,5,FALSE) -> 84564 | C26: =$E$20 -> 0.0068 | D26: =ROUND(ROUND(B26,0)*C26,2) -> 575.04
A27: Second œuvre | B27: =VLOOKUP("X",'Paramètres campagne'!$A$3:$G$19,5,FALSE) -> 84564 | C27: =$E$21 -> 0.0013 | D27: =ROUND(ROUND(B27,0)*C27,2) -> 109.93
A30: 1 - Saisir chaque mois, dans la colonne "Assiette" du tableau ci-dessous, le montant des salaires intempéries indiqué sur la ligne "INTEMPERIES GO" de votre déclaration de salaires ou de l'appel de cotisations généré à partir de votre DSN. 2 - Sauvegarder le fichier. 3 - Vérifier le montant de la cotisation de votre déclaration sur la ligne "INTEMPERIES GO". | F30: 4 - Sur cnetp.fr vous pouvez alors retrouver, au niveau de la déclaration de salaires (TDP) ou de l'appel de cotisations (DSN), le montant de l'ABATTEMENT A DEDUIRE calculé automatiquement. 5 - Le montant à régler en bas de la déclaration tient compte de l'abattement intempéries à déduire.
A32: Mois de la déclaration de salaires | B32: Cotisation intempéries déclarée | E32: Abattement déjà déduit | F32: Abattement restant à déduire | G32: Abattement à déduire de la déclaration
B33: Assiette | C33: Taux | D33: Montant | G33: Assiette | H33: Taux | I33: Montant
A34: =B18 -> 2022-04-01 | B34: 17500.65 | C34: =$E$20 -> 0.0068 | D34: =ROUND(ROUND(B34,0)*C34,2) -> 119.01 | E34: 0 | F34: =$B$26-E34 -> 84564 | G34: =MIN(ROUND(B34,0),F34) -> 17501 | H34: =C34 -> 0.0068 | I34: =ROUND(ROUND(G34,0)*H34,2) -> 119.01
A35: =A34+30 -> 2022-05-01 | B35: 17052.74 | C35: 0.0068 | D35: 115.96 | E35: =G34 -> 17501 | F35: 67063 | G35: =MIN(ROUND(B35,0),F35) -> 17053 | H35: =C35 -> 0.0068 | I35: 115.96
A36: =A35+31 -> 2022-06-01 | B36: 12506.05 | C36: 0.0068 | D36: 85.04 | E36: =SUM($G$34:G35) -> 34554 | F36: 50010 | G36: 12506 | H36: 0.0068 | I36: 85.04
A37: 2022-07-01 | B37: 18816.32 | C37: 0.0068 | D37: 127.95 | E37: =SUM($G$34:G36) -> 47060 | F37: 37504 | G37: 18816 | H37: 0.0068 | I37: 127.95
A38: =A37+31 -> 2022-08-01 | B38: 19400 | C38: 0.0068 | D38: 131.92 | E38: =SUM($G$34:G37) -> 65876 | F38: 18688 | G38: 18688 | H38: 0.0068 | I38: 127.08
A39: =A38+31 -> 2022-09-01 | B39: 0 | C39: 0.0068 | D39: 0 | E39: =SUM($G$34:G38) -> 84564 | F39: =$B$26-E39 -> 0 | G39: 0 | H39: 0.0068 | I39: 0
A40: 2022-10-01 | B40: 10762 | C40: =IF(OR(VLOOKUP("X",'Paramètres campagne'!$A$3:$G$19,2,FALSE)=68,VLOOKUP("X",'Paramètres campagne'!$A$3:$G$19,2,FALSE)=73),$F$20,$E$20) -> 0.0068 | D40: 73.18 | E40: =SUM($G$34:G39) -> 84564 | F40: 0 | G40: 0 | H40: 0.0068 | I40: 0
A41: =A40+31 -> 2022-11-01 | B41: 14658 | C41: =IF(OR(VLOOKUP("X",'Paramètres campagne'!$A$3:$G$19,2,FALSE)=68,VLOOKUP("X",'Paramètres campagne'!$A$3:$G$19,2,FALSE)=73),$F$20,$E$20) -> 0.0068 | D41: 99.67 | E41: =SUM($G$34:G40) -> 84564 | F41: 0 | G41: 0 | H41: 0.0068 | I41: 0
A42: 2022-12-01 | B42: 13245 | C42: =IF(OR(VLOOKUP("X",'Paramètres campagne'!$A$3:$G$19,2,FALSE)=68,VLOOKUP("X",'Paramètres campagne'!$A$3:$G$19,2,FALSE)=73),$F$20,$E$20) -> 0.0068 | D42: 90.07 | E42: =SUM($G$34:G41) -> 84564 | F42: 0 | G42: 0 | H42: 0.0068 | I42: 0
A43: =A42+31 -> 2023-01-01 | B43: 12547 | C43: =IF(OR(VLOOKUP("X",'Paramètres campagne'!$A$3:$G$19,2,FALSE)=68,VLOOKUP("X",'Paramètres campagne'!$A$3:$G$19,2,FALSE)=73),$F$20,$E$20) -> 0.0068 | D43: 85.32 | E43: =SUM($G$34:G42) -> 84564 | F43: 0 | G43: 0 | H43: 0.0068 | I43: 0
A44: =A43+31 -> 2023-02-01 | B44: 11256 | C44: =IF(OR(VLOOKUP("X",'Paramètres campagne'!$A$3:$G$19,2,FALSE)=68,VLOOKUP("X",'Paramètres campagne'!$A$3:$G$19,2,FALSE)=73),$F$20,$E$20) -> 0.0068 | D44: 76.54 | E44: =SUM($G$34:G43) -> 84564 | F44: 0 | G44: 0 | H44: 0.0068 | I44: 0
A45: 2023-03-03 | B45: 13620 | C45: =IF(OR(VLOOKUP("X",'Paramètres campagne'!$A$3:$G$19,2,FALSE)=68,VLOOKUP("X",'Paramètres campagne'!$A$3:$G$19,2,FALSE)=73),$F$20,$E$20) -> 0.0068 | D45: 92.62 | E45: =SUM($G$34:G44) -> 84564 | F45: 0 | G45: 0 | H45: 0.0068 | I45: 0
A46: Total de la campagne | B46: =SUM(B34:B45) -> 161363.76 | D46: =SUM(D34:D45) -> 1097.28 | G46: =SUM(G34:G45) -> 84564 | I46: =SUM(I34:I45) -> 575.04
A48: Dans cet exemple, l'adhérent peut déduire de l'abattement intempéries pendant les 5 premiers mois de la campagne (d'avril à août).
A50: Pendant les 4 premiers mois, la déduction est égale à la cotisation. Pour le mois d'août, la déduction n'est que partielle, car le plafond annuel pour cette campagne est atteint.

Sheet Ma feuille de travail - GO
A1: MA FEUILLE DE TRAVAIL - INTEMPERIES GROS ŒUVRE
I2: I0029 V2 (090409)
A4: Campagne du : | B4: =VLOOKUP("X",'Paramètres campagne'!$A$3:$G$19,3,FALSE) -> 2022-04-01 | C4: au | D4: =IF(OR(VLOOKUP("X",'Paramètres campagne'!$A$3:$G$19,2,FALSE)=68,VLOOKUP("X",'Paramètres campagne'!$A$3:$G$19,2,FALSE)=73),VLOOKUP("X2",'Paramètres campagne'!$A$3:$G$19,4,FALSE),VLOOKUP("X",'Paramètres campagne'!$A$3:$G$19,4,FALSE)) -> 2023-03-31 | F4: =VLOOKUP("X",'Paramètres campagne'!$A$3:$G$19,2)&"ème campagne" -> 77ème campagne
A6: Taux d'appel de la cotisation intempéries: | D6: Gros œuvre | E6: =VLOOKUP("X",'Paramètres campagne'!$A$3:$G$19,6,FALSE) -> 0.0068 | F6: =IF(ISERROR(VLOOKUP("X2",'Paramètres campagne'!$A$3:$G$19,6,FALSE)),"",VLOOKUP("X2",'Paramètres campagne'!$A$3:$G$19,6,FALSE)) -> 
D7: Second œuvre | E7: =VLOOKUP("X",'Paramètres campagne'!$A$3:$G$19,7,FALSE) -> 0.0013 | F7: =IF(ISERROR(VLOOKUP("X2",'Paramètres campagne'!$A$3:$G$19,7,FALSE)),"",VLOOKUP("X2",'Paramètres campagne'!$A$3:$G$19,7,FALSE)) -> 
A9: Montant de l'abattement intempéries annuel :
B11: Base annuelle maximale à déduire | C11: Taux de cotisation | D11: Montant annuel maximal à déduire (sauf écarts d'arrondis)
B12: =VLOOKUP("X",'Paramètres campagne'!$A$3:$G$19,5,FALSE) -> 84564 | C12: =$E$6 -> 0.0068 | D12: =ROUND(ROUND(B12,0)*C12,2) -> 575.04
A14: Comment déduire l'abattement intempéries ?
A15: La déduction de l'abattement intempéries est automatique pour les adhérents qui utilisent la TDP ou la DSN pour déclarer leurs cotisations mensuelles. Sur le site cnetp.fr son montant apparaît, soit au niveau de la déclaration de salaires (TDP), soit de l'appel de cotisations (DSN).
A16: La déduction s'opère chaque mois d'une campagne sous le "total des cotisations". Le montant de l'abattement déduit ne dépasse jamais celui de la cotisation intempéries indiqué sur la déclaration.
A17: Pour les adhérents qui n’utilisent pas la DSN, il est donc indispensable de renseigner systématiquement le montant de l’assiette plafonnée sur chacune de leurs déclarations de salaires.
A18: ="La déduction s'arrête lorsque le cumul des assiettes de cotisations intempéries déclaré atteint le montant annuel de l'abattement, soit "&TEXT(B12,"# ### €")&" pour la "&F4&"." -> La déduction s'arrête lorsque le cumul des assiettes de cotisations intempéries déclaré atteint le montant annuel de l'abattement, soit 84 564 € pour la 77ème campagne.
I19: S00056-10
A20: MA FEUILLE DE TRAVAIL GROS ŒUVRE
A21: 1 - Saisir chaque mois, dans la colonne "Assiette" du tableau ci-dessous, le montant des salaires intempéries indiqué sur la ligne "INTEMPERIES GO" de votre déclaration de salaires ou de l'appel de cotisations généré à partir de votre DSN. 2 - Sauvegarder le fichier. 3 - Vérifier le montant de la cotisation de votre déclaration sur la ligne "INTEMPERIES GO". | F21: 4 - Sur cnetp.fr vous pouvez alors retrouver, au niveau de la déclaration de salaires (TDP) ou de l'appel de cotisations (DSN), le montant de l'ABATTEMENT A DEDUIRE calculé automatiquement. 5 - Le montant à régler en bas de la déclaration tient compte de l'abattement intempéries à déduire.
A23: Mois de la déclaration de salaires | B23: Cotisation intempéries déclarée | E23: Abattement déjà déduit | F23: Abattement restant à déduire | G23: Abattement à déduire de la déclaration
B24: Assiette | C24: Taux | D24: Montant | G24: Assiette | H24: Taux | I24: Montant
A25: =B4 -> 2022-04-01 | B25: 0 | C25: =$E$6 -> 0.0068 | D25: =ROUND(ROUND(B25,0)*C25,2) -> 0 | E25: 0 | F25: =$B$12-E25 -> 84564 | G25: =MIN(ROUND(B25,0),F25) -> 0 | H25: =C25 -> 0.0068 | I25: =ROUND(ROUND(G25,0)*H25,2) -> 0
A26: =A25+30 -> 2022-05-01 | B26: 0 | C26: 0.0068 | D26: 0 | E26: =SUM($G$25:G25)+SUM('Ma feuille de travail - SO'!$G$25:G25) -> 0 | F26: 84564 | G26: =MIN(ROUND(B26,0),F26) -> 0 | H26: =C26 -> 0.0068 | I26: 0
A27: =A26+31 -> 2022-06-01 | B27: 0 | C27: 0.0068 | D27: 0 | E27: =SUM($G$25:G26)+SUM('Ma feuille de travail - SO'!$G$25:G26) -> 0 | F27: 84564 | G27: 0 | H27: 0.0068 | I27: 0
A28: 2022-07-01 | B28: 0 | C28: 0.0068 | D28: 0 | E28: =SUM($G$25:G27)+SUM('Ma feuille de travail - SO'!$G$25:G27) -> 0 | F28: 84564 | G28: 0 | H28: 0.0068 | I28: 0
A29: =A28+31 -> 2022-08-01 | B29: 0 | C29: 0.0068 | D29: 0 | E29: =SUM($G$25:G28)+SUM('Ma feuille de travail - SO'!$G$25:G28) -> 0 | F29: 84564 | G29: 0 | H29: 0.0068 | I29: 0
A30: =A29+31 -> 2022-09-01 | B30: 0 | C30: 0.0068 | D30: 0 | E30: =SUM($G$25:G29)+SUM('Ma feuille de travail - SO'!$G$25:G29) -> 0 | F30: 84564 | G30: 0 | H30: 0.0068 | I30: 0
A31: 2022-10-01 | B31: 0 | C31: =IF(OR(VLOOKUP("X",'Paramètres campagne'!$A$3:$G$19,2,FALSE)=68,VLOOKUP("X",'Paramètres campagne'!$A$3:$G$19,2,FALSE)=73),$F$6,$E$6) -> 0.0068 | D31: 0 | E31: =SUM($G$25:G30)+SUM('Ma feuille de travail - SO'!$G$25:G30) -> 0 | F31: 84564 | G31: 0 | H31: 0.0068 | I31: 0
A32: =A31+31 -> 2022-11-01 | B32: 0 | C32: =IF(OR(VLOOKUP("X",'Paramètres campagne'!$A$3:$G$19,2,FALSE)=68,VLOOKUP("X",'Paramètres campagne'!$A$3:$G$19,2,FALSE)=73),$F$6,$E$6) -> 0.0068 | D32: 0 | E32: =SUM($G$25:G31)+SUM('Ma feuille de travail - SO'!$G$25:G31) -> 0 | F32: 84564 | G32: 0 | H32: 0.0068 | I32: 0
A33: 2022-12-01 | B33: 0 | C33: =IF(OR(VLOOKUP("X",'Paramètres campagne'!$A$3:$G$19,2,FALSE)=68,VLOOKUP("X",'Paramètres campagne'!$A$3:$G$19,2,FALSE)=73),$F$6,$E$6) -> 0.0068 | D33: 0 | E33: =SUM($G$25:G32)+SUM('Ma feuille de travail - SO'!$G$25:G32) -> 0 | F33: 84564 | G33: 0 | H33: 0.0068 | I33: 0
A34: =A33+31 -> 2023-01-01 | B34: 0 | C34: =IF(OR(VLOOKUP("X",'Paramètres campagne'!$A$3:$G$19,2,FALSE)=68,VLOOKUP("X",'Paramètres campagne'!$A$3:$G$19,2,FALSE)=73),$F$6,$E$6) -> 0.0068 | D34: 0 | E34: =SUM($G$25:G33)+SUM('Ma feuille de travail - SO'!$G$25:G33) -> 0 | F34: 84564 | G34: 0 | H34: 0.0068 | I34: 0
A35: =A34+31 -> 2023-02-01 | B35: 0 | C35: =IF(OR(VLOOKUP("X",'Paramètres campagne'!$A$3:$G$19,2,FALSE)=68,VLOOKUP("X",'Paramètres campagne'!$A$3:$G$19,2,FALSE)=73),$F$6,$E$6) -> 0.0068 | D35: 0 | E35: =SUM($G$25:G34)+SUM('Ma feuille de travail - SO'!$G$25:G34) -> 0 | F35: 84564 | G35: 0 | H35: 0.0068 | I35: 0
A36: 2023-03-03 | B36: 0 | C36: =IF(OR(VLOOKUP("X",'Paramètres campagne'!$A$3:$G$19,2,FALSE)=68,VLOOKUP("X",'Paramètres campagne'!$A$3:$G$19,2,FALSE)=73),$F$6,$E$6) -> 0.0068 | D36: 0 | E36: =SUM($G$25:G35)+SUM('Ma feuille de travail - SO'!$G$25:G35) -> 0 | F36: 84564 | G36: 0 | H36: 0.0068 | I36: 0
A37: Total de la campagne | B37: =SUM(B25:B36) -> 0 | D37: =SUM(D25:D36) -> 0 | G37: =SUM(G25:G36) -> 0 | I37: =SUM(I25:I36) -> 0

Sheet Ma feuille de travail - SO
A1: MA FEUILLE DE TRAVAIL - INTEMPERIES SECOND ŒUVRE
I2: I0029 V2 (090409)
A4: Campagne du : | B4: =VLOOKUP("X",'Paramètres campagne'!$A$3:$G$19,3,FALSE) -> 2022-04-01 | C4: au | D4: =IF(OR(VLOOKUP("X",'Paramètres campagne'!$A$3:$G$19,2,FALSE)=68,VLOOKUP("X",'Paramètres campagne'!$A$3:$G$19,2,FALSE)=73),VLOOKUP("X2",'Paramètres campagne'!$A$3:$G$19,4,FALSE),VLOOKUP("X",'Paramètres campagne'!$A$3:$G$19,4,FALSE)) -> 2023-03-31 | F4: =VLOOKUP("X",'Paramètres campagne'!$A$3:$G$19,2)&"ème campagne" -> 77ème campagne
A6: Taux d'appel de la cotisation intempéries: | D6: Gros œuvre | E6: =VLOOKUP("X",'Paramètres campagne'!$A$3:$G$19,6,FALSE) -> 0.0068 | F6: =IF(ISERROR(VLOOKUP("X2",'Paramètres campagne'!$A$3:$G$19,6,FALSE)),"",VLOOKUP("X2",'Paramètres campagne'!$A$3:$G$19,6,FALSE)) -> 
D7: Second œuvre | E7: =VLOOKUP("X",'Paramètres campagne'!$A$3:$G$19,7,FALSE) -> 0.0013 | F7: =IF(ISERROR(VLOOKUP("X2",'Paramètres campagne'!$A$3:$G$19,7,FALSE)),"",VLOOKUP("X2",'Paramètres campagne'!$A$3:$G$19,7,FALSE)) -> 
A9: Montant de l'abattement intempéries annuel :
B11: Base annuelle maximale à déduire | C11: Taux de cotisation | D11: Montant annuel maximal à déduire (sauf écarts d'arrondis)
B12: =VLOOKUP("X",'Paramètres campagne'!$A$3:$G$19,5,FALSE) -> 84564 | C12: =$E$7 -> 0.0013 | D12: =ROUND(ROUND(B12,0)*C12,2) -> 109.93
A14: Comment déduire l'abattement intempéries ?
A15: La déduction de l'abattement intempéries est automatique pour les adhérents qui utilisent la TDP ou la DSN pour déclarer leurs cotisations mensuelles. Sur le site cnetp.fr son montant apparaît, soit au niveau de la déclaration de salaires (TDP), soit de l'appel de cotisations (DSN).
A16: La déduction s'opère chaque mois d'une campagne sous le "total des cotisations". Le montant de l'abattement déduit ne dépasse jamais celui de la cotisation intempéries indiqué sur la déclaration.
A17: Pour les adhérents qui n’utilisent pas la DSN, il est donc indispensable de renseigner systématiquement le montant de l’assiette plafonnée sur chacune de leurs déclarations de salaires.
A18: ="La déduction s'arrête lorsque le cumul des assiettes de cotisations intempéries déclaré atteint le montant annuel de l'abattement, soit "&TEXT(B12,"# ### €")&" pour la "&F4&"." -> La déduction s'arrête lorsque le cumul des assiettes de cotisations intempéries déclaré atteint le montant annuel de l'abattement, soit 84 564 € pour la 77ème campagne.
I19: S00056-10
A20: MA FEUILLE DE TRAVAIL SECOND ŒUVRE
A21: 1 - Saisir chaque mois, dans la colonne "Assiette" du tableau ci-dessous, le montant des salaires intempéries indiqué sur la ligne "INTEMPERIES SO" de votre déclaration de salaires ou de l'appel de cotisations généré à partir de votre DSN. 2 - Sauvegarder le fichier. 3 - Vérifier le montant de la cotisation de votre déclaration sur la ligne "INTEMPERIES SO". | F21: 4 - Sur cnetp.fr vous pouvez alors retrouver, au niveau de la déclaration de salaires (TDP) ou de l'appel de cotisations (DSN), le montant de l'ABATTEMENT A DEDUIRE calculé automatiquement. 5 - Le montant à régler en bas de la déclaration tient compte de l'abattement intempéries à déduire.
A23: Mois de la déclaration de salaires | B23: Cotisation intempéries déclarée | E23: Abattement déjà déduit | F23: Abattement restant à déduire | G23: Abattement à déduire de la déclaration
B24: Base | C24: Taux | D24: Montant | G24: Base | H24: Taux | I24: Montant
A25: =B4 -> 2022-04-01 | B25: 0 | C25: =$E$7 -> 0.0013 | D25: =ROUND(ROUND(B25,0)*C25,2) -> 0 | E25: =0+'Ma feuille de travail - GO'!G25 -> 0 | F25: =$B$12-E25 -> 84564 | G25: =MIN(ROUND(B25,0),F25) -> 0 | H25: =C25 -> 0.0013 | I25: =ROUND(ROUND(G25,0)*H25,2) -> 0
A26: =A25+30 -> 2022-05-01 | B26: 0 | C26: 0.0013 | D26: 0 | E26: =SUM($G$25:G25)+SUM('Ma feuille de travail - GO'!$G$25:G26) -> 0 | F26: 84564 | G26: =MIN(ROUND(B26,0),F26) -> 0 | H26: =C26 -> 0.0013 | I26: 0
A27: =A26+31 -> 2022-06-01 | B27: 0 | C27: 0.0013 | D27: 0 | E27: =SUM($G$25:G26)+SUM('Ma feuille de travail - GO'!$G$25:G27) -> 0 | F27: 84564 | G27: 0 | H27: 0.0013 | I27: 0
A28: 2022-07-01 | B28: 0 | C28: 0.0013 | D28: 0 | E28: =SUM($G$25:G27)+SUM('Ma feuille de travail - GO'!$G$25:G28) -> 0 | F28: 84564 | G28: 0 | H28: 0.0013 | I28: 0
A29: =A28+31 -> 2022-08-01 | B29: 0 | C29: 0.0013 | D29: 0 | E29: =SUM($G$25:G28)+SUM('Ma feuille de travail - GO'!$G$25:G29) -> 0 | F29: 84564 | G29: 0 | H29: 0.0013 | I29: 0
A30: =A29+31 -> 2022-09-01 | B30: 0 | C30: 0.0013 | D30: 0 | E30: =SUM($G$25:G29)+SUM('Ma feuille de travail - GO'!$G$25:G30) -> 0 | F30: 84564 | G30: 0 | H30: 0.0013 | I30: 0
A31: 2022-10-01 | B31: 0 | C31: =IF(OR(VLOOKUP("X",'Paramètres campagne'!$A$3:$G$19,2,FALSE)=68,VLOOKUP("X",'Paramètres campagne'!$A$3:$G$19,2,FALSE)=73),$F$7,$E$7) -> 0.0013 | D31: 0 | E31: =SUM($G$25:G30)+SUM('Ma feuille de travail - GO'!$G$25:G31) -> 0 | F31: 84564 | G31: 0 | H31: 0.0013 | I31: 0
A32: =A31+31 -> 2022-11-01 | B32: 0 | C32: =IF(OR(VLOOKUP("X",'Paramètres campagne'!$A$3:$G$19,2,FALSE)=68,VLOOKUP("X",'Paramètres campagne'!$A$3:$G$19,2,FALSE)=73),$F$7,$E$7) -> 0.0013 | D32: 0 | E32: =SUM($G$25:G31)+SUM('Ma feuille de travail - GO'!$G$25:G32) -> 0 | F32: 84564 | G32: 0 | H32: 0.0013 | I32: 0
A33: 2022-12-01 | B33: 0 | C33: =IF(OR(VLOOKUP("X",'Paramètres campagne'!$A$3:$G$19,2,FALSE)=68,VLOOKUP("X",'Paramètres campagne'!$A$3:$G$19,2,FALSE)=73),$F$7,$E$7) -> 0.0013 | D33: 0 | E33: =SUM($G$25:G32)+SUM('Ma feuille de travail - GO'!$G$25:G33) -> 0 | F33: 84564 | G33: 0 | H33: 0.0013 | I33: 0
A34: =A33+31 -> 2023-01-01 | B34: 0 | C34: =IF(OR(VLOOKUP("X",'Paramètres campagne'!$A$3:$G$19,2,FALSE)=68,VLOOKUP("X",'Paramètres campagne'!$A$3:$G$19,2,FALSE)=73),$F$7,$E$7) -> 0.0013 | D34: 0 | E34: =SUM($G$25:G33)+SUM('Ma feuille de travail - GO'!$G$25:G34) -> 0 | F34: =$B$12-E34 -> 84564 | G34: 0 | H34: 0.0013 | I34: 0
A35: =A34+31 -> 2023-02-01 | B35: 0 | C35: =IF(OR(VLOOKUP("X",'Paramètres campagne'!$A$3:$G$19,2,FALSE)=68,VLOOKUP("X",'Paramètres campagne'!$A$3:$G$19,2,FALSE)=73),$F$7,$E$7) -> 0.0013 | D35: 0 | E35: =SUM($G$25:G34)+SUM('Ma feuille de travail - GO'!$G$25:G35) -> 0 | F35: 84564 | G35: 0 | H35: 0.0013 | I35: 0
A36: 2023-03-03 | B36: 0 | C36: =IF(OR(VLOOKUP("X",'Paramètres campagne'!$A$3:$G$19,2,FALSE)=68,VLOOKUP("X",'Paramètres campagne'!$A$3:$G$19,2,FALSE)=73),$F$7,$E$7) -> 0.0013 | D36: 0 | E36: =SUM($G$25:G35)+SUM('Ma feuille de travail - GO'!$G$25:G36) -> 0 | F36: 84564 | G36: 0 | H36: 0.0013 | I36: 0
A37: Total de la campagne | B37: =SUM(B25:B36) -> 0 | D37: =SUM(D25:D36) -> 0 | G37: =SUM(G25:G36) -> 0 | I37: =SUM(I25:I36) -> 0
